Cogmind - Beta 15 @@@ ROGUE MODE // 2025.06.06 @ 01:03:15 // Winter2019/RPGLIKE Player: Jack Result: Destroyed by Y-72 Warden with Quantum Rifle Performance ------------- Evolutions (8) 4000 Regions Visited (29) 5800 Robots Destroyed (316) 1580 Value Destroyed (15488) 15488 Prototype IDs (219) 4380 Alien Tech Used (3) 600 Bonus (12652) 12652 TOTAL SCORE: 44500 Bonus ------- High Alert Combat Kills 2234 Follower Combat Kills 1254 Network Hubs Disabled 600 Met Data Miner 300 Used Data Conduit 3000 Met Imprinter 300 Was Imprinted 300 Met Warlord at Base 500 MAIN.C Attacked Warlord 500 Warlord Defense Kills 30 Built Enhanced Grunts 300 A7 Reached Mainframe 300 Used Core Reset Matrix 3000 Scanned by Researcher 500 Pursued by Intercept 1000 Friendly Fire -1466 Cogmind --------- Core Integrity 0/1500 Matter 300/300 Energy 1150/1150 System Corruption 10% Temperature Warm (135) +ITN Movement Flying (40) Location -2/Section 7 Parts ------- > --- POWER (1) -------- Zionite Light DM Reactor > --- PROPULSION (2) --- Field Propulsion Array > --- UTILITY (10) ----- Experimental Energy Well Advanced Weight Redist. System Core Analyzer Core Analyzer Experimental Armor Integrity Analyzer Microactuators Graphene Brace System Mapper > --- WEAPON (3) ------- (None) > --- INVENTORY (6) ---- Microactuators Force Booster Force Booster Centrium Greatsword Peak State ------------ > --- POWER ------------ Zionite Light DM Reactor > --- PROPULSION ------- Field Propulsion Array > --- UTILITY ---------- Experimental Energy Well Advanced Weight Redist. System Core Analyzer Core Analyzer Experimental Armor Integrity Analyzer Microactuators Microactuators Graphene Brace Force Field System Mapper > --- WEAPON ----------- Improved Datajack Centrium Greatsword > --- INVENTORY -------- Protomatter Force Booster Force Booster Zionite Light Carapace [Rating: 101] Favorites ----------- Power Zionite Light DM Reactor Engine Light Ion Engine Reactor Zionite Light DM Reactor Propulsion VTOL Module Treads Light Treads Flight Unit VTOL Module Utility Core Analyzer Device Microactuators Storage Experimental Energy Well Processor Core Analyzer Hackware System Mapper Protection Zionite Light Carapace Weapon Greatsword Ballistic Gun Assault Rifle Slashing Weapon Greatsword Special Melee Weapon Improved Datajack Build | -11 -10 -9 -8 -7 -7 -7 -7 -7 -6 -6 -6 -6 -6 -5 -5 -5 -5 -5 -5 -4 -4 -4 -4 -3 -3 -3 -2 -2 -2 ------- Run | Yrd Mat Mat Mat Fac Low Low Zio Dee Pro Fac Low Low Dat Pro Fac Ext Cet Arc Hub Fac Upp Upp War Pro Res Qua Res Tes Sec Slots Evolved 12 | 2 . 1 . 3 . 1 . . 1 . . . . . 1 1 . . . . . 1 . . . . 1 . . Power . | . . . . . . . . . . . . . . . . . . . . . . . . . . . . . . Propulsion 1 | 1 . . . . . . . . . . . . . . . . . . . . . . . . . . . . . Utility 9 | . . 1 . 3 . 1 . . 1 . . . . . 1 1 . . . . . . . . . . 1 . . Weapon 2 | 1 . . . . . . . . . . . . . . . . . . . . . 1 . . . . . . . Parts Attached 43 | 3 5 6 . 13 . 1 . 4 . 1 . . 1 . 3 . 1 . . 1 . . . 1 1 . 2 . . Power 6 | . 1 1 . 3 . . . 1 . . . . . . . . . . . . . . . . . . . . . Engine 5 | . 1 1 . 3 . . . . . . . . . . . . . . . . . . . . . . . . . Core . | . . . . . . . . . . . . . . . . . . . . . . . . . . . . . . Reactor 1 | . . . . . . . . 1 . . . . . . . . . . . . . . . . . . . . . Propulsion 12 | 1 2 2 . 5 . . . . . . . . . . 1 . . . . . . . . . 1 . . . . Treads 1 | 1 . . . . . . . . . . . . . . . . . . . . . . . . . . . . . Leg . | . . . . . . . . . . . . . . . . . . . . . . . . . . . . . . Wheel . | . . . . . . . . . . . . . . . . . . . . . . . . . . . . . . Hover . | . . . . . . . . . . . . . . . . . . . . . . . . . . . . . . Flight 11 | . 2 2 . 5 . . . . . . . . . . 1 . . . . . . . . . 1 . . . . Utility 17 | . 1 1 . 4 . 1 . 3 . 1 . . 1 . 2 . . . . 1 . . . 1 . . 1 . . Device 8 | . . 1 . 2 . 1 . 1 . 1 . . . . 1 . . . . 1 . . . . . . . . . Storage 2 | . . . . . . . . . . . . . 1 . . . . . . . . . . . . . 1 . . Processor 3 | . . . . 2 . . . . . . . . . . . . . . . . . . . 1 . . . . . Hackware 2 | . 1 . . . . . . . . . . . . . 1 . . . . . . . . . . . . . . Protection 2 | . . . . . . . . 2 . . . . . . . . . . . . . . . . . . . . . Artifact . | . . . . . . . . . . . . . . . . . . . . . . . . . . . . . . Weapon 8 | 2 1 2 . 1 . . . . . . . . . . . . 1 . . . . . . . . . 1 . . Energy Gun . | . . . . . . . . . . . . . . . . . . . . . . . . . . . . . . Energy Cannon . | . . . . . . . . . . . . . . . . . . . . . . . . . . . . . . Ballistic Gun 2 | 2 . . . . . . . . . . . . . . . . . . . . . . . . . . . . . Ballistic Cannon . | . . . . . . . . . . . . . . . . . . . . . . . . . . . . . . Launcher . | . . . . . . . . . . . . . . . . . . . . . . . . . . . . . . Special Weapon . | . . . . . . . . . . . . . . . . . . . . . . . . . . . . . . Impact Weapon . | . . . . . . . . . . . . . . . . . . . . . . . . . . . . . . Slashing Weapon 5 | . 1 2 . 1 . . . . . . . . . . . . . . . . . . . . . . 1 . . Piercing Weapon . | . . . . . . . . . . . . . . . . . . . . . . . . . . . . . . Special Melee Weapon 1 | . . . . . . . . . . . . . . . . . 1 . . . . . . . . . . . . Unidentified Prototypes 6 | . . . . 1 . . . 4 . . . . . . . . . . . . . . . . . . . . 1 Parts Lost 4 | . . . . 1 . . . . . . . . . . . . . . . . . . . . . . . . 3 Power . | . . . . . . . . . . . . . . . . . . . . . . . . . . . . . . Propulsion 1 | . . . . 1 . . . . . . . . . . . . . . . . . . . . . . . . . Utility 2 | . . . . . . . . . . . . . . . . . . . . . . . . . . . . . 2 Weapon 1 | . . . . . . . . . . . . . . . . . . . . . . . . . . . . . 1 Highest Loss Streak 2 | . . . . 1 . . . . . . . . . . . . . . . . . . . . . . . . 2 To Critical Strikes . | . . . . . . . . . . . . . . . . . . . . . . . . . . . . . . Average Backups 1 | . . . . . 1 . . . . . . . 1 3 2 2 3 3 3 3 4 3 3 4 4 4 3 3 3 Power . | . . . . . . . . . . . . . . . . . . . . . . . . . . . . . . Propulsion . | . . . . . . . . . . . . . . . . . . . . . . . . . . . . . . Utility 1 | . . . . . 1 . . . . . . . 1 3 2 2 2 2 2 2 3 3 3 4 4 4 3 3 3 Weapon . | . . . . . . . . . . . . . . . . . . . . . . . . . . . . . . Tool/Special . | . . . . . . . . . . . . . . . . . . . . . . . . . . . . . . Unused Backups 2 | . . . . . . . 1 . . . . . . . . . . . . . . . . . . . . . 1 Power . | . . . . . . . . . . . . . . . . . . . . . . . . . . . . . . Propulsion . | . . . . . . . . . . . . . . . . . . . . . . . . . . . . . . Utility 1 | . . . . . . . . . . . . . . . . . . . . . . . . . . . . . 1 Weapon 1 | . . . . . . . 1 . . . . . . . . . . . . . . . . . . . . . . Tool/Special . | . . . . . . . . . . . . . . . . . . . . . . . . . . . . . . Average Slot Usage (%) 86 | . 58 97 100 94 90 90 90 89 90 91 91 91 88 83 81 84 85 85 85 85 85 85 85 86 86 86 85 87 79 Engine 3 | . 9 14 14 12 10 9 9 2 . . . . . . . . . . . . . . . . . . . . . Reactor 4 | . . . . . . . . 6 8 8 8 8 8 8 7 7 7 7 7 7 7 6 6 6 6 6 6 6 6 Flight 13 | . 19 28 28 25 20 19 18 18 17 16 16 16 16 16 7 7 7 7 7 7 7 6 6 6 6 6 6 6 6 Device 29 | . . 12 14 16 30 30 36 35 34 33 33 33 33 33 35 37 35 35 35 35 42 40 40 34 33 33 32 31 23 Processor 14 | . . . . 6 20 19 18 18 17 16 16 16 16 16 15 14 14 14 14 14 14 13 13 18 20 20 19 18 18 Hackware 4 | . 4 14 14 11 . . . . . . . . . . 5 7 7 7 7 7 7 6 6 6 6 6 6 6 6 Protection 1 | . . . . . . . . . 2 8 8 8 5 . . 2 7 7 7 6 . . . . . . . . . Slashing Weapon 9 | . 7 26 28 21 10 9 9 9 8 8 8 8 8 8 7 7 5 6 7 7 7 6 6 6 6 6 5 6 5 Special Melee Weapon 1 | . . . . . . . . . . . . . . . . . 1 . . . . 3 5 6 6 6 6 6 5 Peak Build Rating 101 | 2 7 15 15 36 36 42 42 50 53 53 52 52 55 48 70 72 72 72 72 74 74 77 78 83 85 85 101 101 101 Average Rating 55 | 1 4 14 15 23 36 36 42 45 48 52 52 52 50 47 62 68 70 71 72 72 74 75 76 82 84 85 88 101 95 On Entrance 55 | . 2 7 15 15 36 36 42 42 47 53 52 52 52 48 48 67 72 68 72 72 74 74 76 78 83 85 85 101 101 Naked Turns . | . . . . . . . . . . . . . . . . . . . . . . . . . . . . . . Heaviest Build 33 | 3 6 7 7 14 14 22 22 27 29 29 28 28 28 26 31 33 33 33 33 33 32 33 33 33 28 28 30 30 30 Greatest Support 39 | 3 8 17 17 20 18 23 23 28 33 33 33 33 33 33 37 37 37 37 37 37 37 37 37 37 39 39 39 39 39 Greatest Overweight (x) 1 | . . . . . . . . . . . . . . 1 1 . . . . . . . . . . . . . 1 Average Overweight (x) . | . . . . . . . . . . . . . . . . . . . . . . . . . . . . . . Largest Inventory Capacity 6 | . . . 1 2 2 2 2 2 2 2 2 2 4 4 5 5 5 5 5 6 6 6 6 6 6 6 6 6 6 Average Capacity 3 | . . . . 1 2 2 2 2 2 2 2 2 2 4 4 5 5 5 5 5 6 6 6 6 6 6 6 6 6 Most Carried 6 | . . . 1 2 2 1 2 2 2 2 2 2 4 4 5 5 5 5 5 6 6 6 6 6 4 4 5 4 6 Average Carried 2 | . . . . . 1 . 1 . . 1 1 1 2 3 3 4 4 4 5 5 6 5 4 4 4 4 4 4 4 Final Capacity 6 | . . . 1 2 2 2 2 2 2 2 2 2 4 4 5 5 5 5 5 6 6 6 6 6 6 6 6 6 6 Final Carried 6 | . . . 1 2 1 . 2 1 . 2 1 2 4 3 5 5 4 5 5 6 6 3 6 4 4 4 4 4 5 Class Distribution -------------------- 44% | Wizard-Gladiator 41% | Hacker-Sprinter 9% | Hacker-Gladiator Dominant Class ---------------- Mutant | -10/Materials Hacker-Gladiator | -9/Materials Hacker-Gladiator | -8/Materials Hacker-Sprinter | -7/Factory Hacker-Sprinter | -7/Lower Caves Hacker-Sprinter | -7/Lower Caves Hacker-Sprinter | -7/Zion Hacker-Sprinter | -7/Deep Caves Hacker-Sprinter | -6/Proximity Caves Hacker-Sprinter | -6/Factory Hacker-Sprinter | -6/Lower Caves Hacker-Sprinter | -6/Lower Caves Hacker-Sprinter | -6/Data Miner Hacker-Sprinter | -5/Proximity Caves Wizard-Gladiator | -5/Factory Wizard-Gladiator | -5/Extension Wizard-Gladiator | -5/Cetus Wizard-Gladiator | -5/Archives Wizard-Gladiator | -5/Hub_04(d) Wizard-Gladiator | -4/Factory Wizard-Gladiator | -4/Upper Caves Wizard-Gladiator | -4/Upper Caves Wizard-Gladiator | -4/Warlord Wizard-Gladiator | -3/Proximity Caves Wizard-Gladiator | -3/Research Wizard-Gladiator | -3/Quarantine Wizard-Gladiator | -2/Research Wizard-Gladiator | -2/Testing Wizard-Gladiator | -2/Section 7 Resources | -11 -10 -9 -8 -7 -7 -7 -7 -7 -6 -6 -6 -6 -6 -5 -5 -5 -5 -5 -5 -4 -4 -4 -4 -3 -3 -3 -2 -2 -2 ----------- Run | Yrd Mat Mat Mat Fac Low Low Zio Dee Pro Fac Low Low Dat Pro Fac Ext Cet Arc Hub Fac Upp Upp War Pro Res Qua Res Tes Sec Matter Collected 1200 | 35 309 60 . 170 . 5 10 . 123 20 . . . 30 50 69 10 62 . 15 10 10 40 10 10 17 17 1 117 Remotely . | . . . . . . . . . . . . . . . . . . . . . . . . . . . . . . Salvage Created 15022 | . 379 291 210 2153 382 325 151 259 1058 860 158 44 456 970 1024 956 . 110 . 639 109 132 132 336 276 295 662 108 2547 Parts 822 | . 27 24 19 143 13 16 18 44 42 51 10 7 12 47 49 41 4 9 . 28 7 15 1 16 38 22 26 6 87 Haulers Intercepted 2 | . 1 . . . . . . . . 1 . . . . . . . . . . . . . . . . . . . Recyclers Shooed 1 | . . . . . . . . . . . . . . . . . . . . . . . . . . . 1 . . Parts Field Recycled . | . . . . . . . . . . . . . . . . . . . . . . . . . . . . . . Retrieved Matter . | . . . . . . . . . . . . . . . . . . . . . . . . . . . . . . Parts Self-Destructed 173 | . . . . . 12 16 3 . 42 . 9 4 . 49 . . . . . . 7 15 . 16 . . . . . Prevented . | . . . . . . . . . . . . . . . . . . . . . . . . . . . . . . Kills | -11 -10 -9 -8 -7 -7 -7 -7 -7 -6 -6 -6 -6 -6 -5 -5 -5 -5 -5 -5 -4 -4 -4 -4 -3 -3 -3 -2 -2 -2 ------- Run | Yrd Mat Mat Mat Fac Low Low Zio Dee Pro Fac Low Low Dat Pro Fac Ext Cet Arc Hub Fac Upp Upp War Pro Res Qua Res Tes Sec Combat Hostiles Destroyed 270 | . 11 9 6 46 5 8 3 11 25 14 4 2 4 17 18 11 1 3 . 9 3 6 2 5 4 4 8 1 30 Melee 264 | . 5 9 6 46 5 8 3 11 25 14 4 2 4 17 18 11 1 3 . 9 3 6 2 5 4 4 8 1 30 Guns 6 | . 6 . . . . . . . . . . . . . . . . . . . . . . . . . . . . Classes Destroyed 28 | . 6 2 . 4 2 . 3 2 3 . . 2 . . 2 . . . . . . . . . . 2 . . . Worker 7 | . . . . 4 . . . . . 1 . . . . . . . . . . . . . . 1 . . . 1 Builder 3 | . . . . . . . . . . . . . . . 1 . . . . . . . . . 2 . . . . Tunneler 2 | . 2 . . . . . . . . . . . . . . . . . . . . . . . . . . . . Hauler 2 | . 1 . . . . . . . . 1 . . . . . . . . . . . . . . . . . . . Recycler 11 | . . 2 . 6 . . . . . . . . . . 1 . . . . . . . . . . . 1 1 . Minesweeper 1 | . . . . . . . . . . . . 1 . . . . . . . . . . . . . . . . . Mechanic 1 | . . . . . . . . . . . . . . . 1 . . . . . . . . . . . . . . Operator 6 | . 1 1 . 1 . . . . . . . . . . . 2 . . . 1 . . . . . . . . . Drone 2 | . . . . . . . . . 2 . . . . . . . . . . . . . . . . . . . . Watcher 8 | . 1 1 . 1 . . . . . 2 . . . . . 2 . . . . . . . . 1 . . . . Swarmer 62 | . 9 6 . 11 1 4 . . 6 2 4 . . 6 . 2 . . . 3 1 3 . 4 . . . . . Saboteur 3 | . . . . . . . . . 1 . . . . . 1 . . . . . . . 1 . . . . . . Grunt 88 | . 2 2 3 19 2 3 . . 10 9 . 1 . 6 10 4 . . . 3 1 3 . . . . 4 . 6 Brawler 6 | . . . . . 1 . . . 1 . . . . 2 1 . . . . . . . 1 . . . . . . Duelist 7 | . . . . . . . . . 4 . . . . 3 . . . . . . . . . . . . . . . Protector 1 | . . . . 1 . . . . . . . . . . . . . . . . . . . . . . . . . Researcher 4 | . . . . . . . . . . . . . . . . . . . . . . . . . . 1 . . 3 Sentry 23 | . . 1 3 5 . . . . 1 1 . . . . . 4 . 3 . 1 1 . . . . . . . 3 Specialist 1 | . . . . . . . . . . . . . . . . . . . . . . . . . . 1 . . . Hunter 33 | . . . . 7 . . . . . 2 . . . . 2 . 1 . . 2 . . . . . 2 4 1 12 Programmer 16 | . . . . 3 . 1 . . . . . . . . 2 . . . . . . . . . 4 1 . . 5 Behemoth 3 | . . . . . 1 . . . . . . . . . . 1 . . . . . . . 1 . . . . . S7 Guard 1 | . . . . . . . . . . . . . . . . . . . . . . . . . . . . . 1 Enhanced Grunt 4 | . . . . . . . . . . . . . 4 . . . . . . . . . . . . . . . . Tracker 2 | . . . . . . . . . . . . . . . 1 . . . . . . . . . . . . . 1 Combat Programmer 3 | . . . . . . . . . . . . . . . 1 . . . . . . . . . . . . . 2 Explorer 1 | . . . . . . . 1 . . . . . . . . . . . . . . . . . . . . . . Zionite 2 | . . . . . . . 2 . . . . . . . . . . . . . . . . . . . . . . Z-Light 8 | . . . . . . . . 8 . . . . . . . . . . . . . . . . . . . . . Decomposer 1 | . . . . . . . . . . . 1 . . . . . . . . . . . . . . . . . . Thief 1 | . . . . . . . . . . . . 1 . . . . . . . . . . . . . . . . . Assembled 3 | . . . . . . . . 3 . . . . . . . . . . . . . . . . . . . . . Thug 1 | . . . . . . . . . . . . . . . . 1 . . . . . . . . . . . . . Mutant 1 | . . . . . . . 1 . . . . . . . . . . . . . . . . . . . . . . Best Kill Streak 8 | . 3 7 4 7 3 4 5 8 5 8 4 2 2 3 7 4 1 3 . 4 3 6 1 4 6 2 8 1 5 Combat Bots Only 7 | . 3 6 3 6 3 4 2 5 5 6 4 1 2 3 7 4 1 3 . 4 3 6 1 4 2 2 7 1 5 Max Kills in Single Turn 2 | . 2 1 1 1 1 1 1 1 1 1 1 1 1 1 1 1 1 1 . 1 1 1 1 1 1 1 1 1 1 Gunslinging 1 | . 1 . . . . . . . . . . . . . . . . . . . . . . . . . . . . Exploded . | . . . . . . . . . . . . . . . . . . . . . . . . . . . . . . Melee 1 | . 1 1 1 1 1 1 1 1 1 1 1 1 1 1 1 1 1 1 . 1 1 1 1 1 1 1 1 1 1 Uniques/NPCs Destroyed 2 | . . . . . . . 1 . . . . . 1 . . . . . . . . . . . . . . . . Imprinter (-7/Zion) Data Miner (-6/Data Miner) Combat | -11 -10 -9 -8 -7 -7 -7 -7 -7 -6 -6 -6 -6 -6 -5 -5 -5 -5 -5 -5 -4 -4 -4 -4 -3 -3 -3 -2 -2 -2 -------- Run | Yrd Mat Mat Mat Fac Low Low Zio Dee Pro Fac Low Low Dat Pro Fac Ext Cet Arc Hub Fac Upp Upp War Pro Res Qua Res Tes Sec Hostile Shots Fired 2055 | . 42 56 12 325 28 25 36 72 61 53 25 8 20 133 101 41 32 4 35 71 6 77 53 26 15 134 75 21 468 Missed 862 | . 19 17 9 155 14 10 13 21 18 31 10 4 6 50 38 14 17 . 17 28 2 26 30 12 5 65 32 10 189 Hits 1193 | . 23 39 3 170 14 15 23 51 43 22 15 4 14 83 63 27 15 4 18 43 4 51 23 14 10 69 43 11 279 Melee 22 | . . . . . 1 . 4 1 3 . . . . 4 3 . . . . . . . 3 . . . . . 3 Projectile 1171 | . 23 39 3 170 13 15 19 50 40 22 15 4 14 79 60 27 15 4 18 43 4 51 20 14 10 69 43 11 276 AOE 3 | . . . . . . . . . . . . . . . . . . . 2 . . . . . . . . . 1 Critical Strikes 44 | . . . . 6 . . 3 . 3 . . 1 . . 10 1 1 . . 4 1 1 1 . 1 1 . . 10 Actively Blocked 19 | . . . . . . . . . . . . . . . . . . . . 4 1 1 1 . 1 1 . . 10 Part Disruptions 2 | . . . . . . . . . . . . . 1 . . . . . . . . . . . 1 . . . . Damage Taken 13290 | . 211 338 47 2121 357 224 320 1265 455 181 84 29 232 554 565 264 128 55 214 319 26 709 185 156 151 408 456 132 3104 Core 10585 | . 182 293 43 1781 295 194 253 1031 338 110 57 21 152 435 456 190 71 36 136 197 22 572 144 132 121 332 363 107 2521 Absorbed by Shields 7332 | . . . . . . . 81 313 341 190 96 31 238 589 595 276 135 59 229 340 27 360 193 162 85 366 481 136 2009 Redirected to Core 7649 | . 91 137 15 1145 229 105 221 873 245 95 45 21 119 318 327 154 71 25 107 165 11 478 128 84 99 227 313 78 1723 Ignored by Resistances 2800 | . . . . . . . . . . . 39 16 124 260 179 130 59 26 72 154 16 249 72 71 . 200 185 57 891 Regen/Repaired (Parts) 49 | . . . . . . . . . . . . . . . 49 . . . . . . . . . . . . . . Core Remaining (%) 84 | 100 80 79 100 . . . . . 100 . . . . 98 . . . . 77 . . . . 71 . 59 . . . Volleys Fired 16 | . 16 . . . . . . . . . . . . . . . . . . . . . . . . . . . . Largest 2 | . 2 . . . . . . . . . . . . . . . . . . . . . . . . . . . . Hottest 40 | . 40 . . . . . . . . . . . . . . . . . . . . . . . . . . . . Shots Fired 32 | . 32 . . . . . . . . . . . . . . . . . . . . . . . . . . . . Gun 32 | . 32 . . . . . . . . . . . . . . . . . . . . . . . . . . . . Cannon . | . . . . . . . . . . . . . . . . . . . . . . . . . . . . . . Launcher . | . . . . . . . . . . . . . . . . . . . . . . . . . . . . . . Special . | . . . . . . . . . . . . . . . . . . . . . . . . . . . . . . Kinetic 32 | . 32 . . . . . . . . . . . . . . . . . . . . . . . . . . . . Thermal . | . . . . . . . . . . . . . . . . . . . . . . . . . . . . . . Explosive . | . . . . . . . . . . . . . . . . . . . . . . . . . . . . . . Electromagnetic . | . . . . . . . . . . . . . . . . . . . . . . . . . . . . . . Robot Hit Streak 5 | . 5 . . . . . . . . . . . . . . . . . . . . . . . . . . . . Robot Miss Streak 4 | . 4 . . . . . . . . . . . . . . . . . . . . . . . . . . . . Penetration Max . | . . . . . . . . . . . . . . . . . . . . . . . . . . . . . . Secondary Targets 1 | . 1 . . . . . . . . . . . . . . . . . . . . . . . . . . . . Max Gunslinging Chain 1 | . 1 . . . . . . . . . . . . . . . . . . . . . . . . . . . . Shots Hit Robots 797 | . 35 26 11 116 17 18 13 29 54 30 8 8 30 47 57 44 6 7 2 22 4 29 4 14 14 14 27 8 103 Core Hits 376 | . 17 12 7 60 7 9 8 13 27 18 5 3 13 22 21 18 2 4 . 10 3 5 1 7 9 5 15 2 53 Critical Kills . | . . . . . . . . . . . . . . . . . . . . . . . . . . . . . . Critical Parts Destroyed . | . . . . . . . . . . . . . . . . . . . . . . . . . . . . . . Critical Strikes 137 | . . 3 1 18 7 1 1 2 11 2 1 1 11 9 10 13 1 . . 4 . 2 . 2 2 2 2 1 30 Sever 137 | . . 3 1 18 7 1 1 2 11 2 1 1 11 9 10 13 1 . . 4 . 2 . 2 2 2 2 1 30 Melee Attacks 1045 | . 23 32 22 155 19 22 29 41 62 46 12 13 43 52 77 50 12 7 9 26 5 34 6 16 34 29 28 15 126 Impact . | . . . . . . . . . . . . . . . . . . . . . . . . . . . . . . Slashing 1043 | . 23 32 22 155 19 22 29 41 62 46 12 13 43 52 77 50 12 7 9 26 5 34 4 16 34 29 28 15 126 Piercing . | . . . . . . . . . . . . . . . . . . . . . . . . . . . . . . Sneak Attacks 53 | . 2 2 . 10 . . 1 . 6 3 1 1 1 . 3 8 . . . . . . 2 1 4 1 1 1 5 Combat Hostiles 7 | . . . . 1 . . . . . 1 . . . . . 2 . . . . . . . 1 . . . . 2 Follow-up Attacks 9 | . . 1 . 8 . . . . . . . . . . . . . . . . . . . . . . . . . Damage Inflicted 45211 | . 640 931 358 4841 862 1014 706 1564 2940 1794 491 541 1601 2481 3772 3172 392 487 55 1431 232 1899 117 949 1041 931 1676 722 7571 Guns 189 | . 189 . . . . . . . . . . . . . . . . . . . . . . . . . . . . Cannons . | . . . . . . . . . . . . . . . . . . . . . . . . . . . . . . Explosions . | . . . . . . . . . . . . . . . . . . . . . . . . . . . . . . Melee 44990 | . 451 931 358 4841 862 1014 706 1564 2940 1794 491 541 1601 2481 3772 3172 392 487 55 1431 232 1899 117 949 1041 931 1644 722 7571 Ramming 32 | . . . . . . . . . . . . . . . . . . . . . . . . . . . 32 . . Kinetic 189 | . 189 . . . . . . . . . . . . . . . . . . . . . . . . . . . . Thermal . | . . . . . . . . . . . . . . . . . . . . . . . . . . . . . . Explosive . | . . . . . . . . . . . . . . . . . . . . . . . . . . . . . . Electromagnetic . | . . . . . . . . . . . . . . . . . . . . . . . . . . . . . . Impact . | . . . . . . . . . . . . . . . . . . . . . . . . . . . . . . Slashing 44990 | . 451 931 358 4841 862 1014 706 1564 2940 1794 491 541 1601 2481 3772 3172 392 487 55 1431 232 1899 117 949 1041 931 1644 722 7571 Piercing . | . . . . . . . . . . . . . . . . . . . . . . . . . . . . . . Highest Corruption 10 | . 1 . 1 . . 1 1 1 1 . . . . . 6 6 6 6 6 . . . . . 3 4 . . 10 Average Corruption 3 | . 1 . 1 . . 1 1 1 1 . . . . . 2 6 6 6 6 . . . . . 2 3 . . 4 Corruption Purged . | . . . . . . . . . . . . . . . . . . . . . . . . . . . . . . Corruption Blocked . | . . . . . . . . . . . . . . . . . . . . . . . . . . . . . . Effects 81 | . 3 . 1 . . 1 2 7 5 . . . . . 2 21 11 2 3 . . . . . 2 5 . . 16 Message Errors 18 | . 1 . . . . . . 4 . . . . . . . 4 3 . 1 . . . . . . 2 . . 3 Matter Fused 29 | . . . . . . 1 1 2 3 . . . . . 1 8 4 2 1 . . . . . . 2 . . 4 Heat Flow Errors 12 | . 1 . 1 . . . . 1 1 . . . . . . 3 1 . 1 . . . . . . . . . 3 Energy Discharges 14 | . 1 . . . . . . . . . . . . . 1 6 3 . . . . . . . 2 1 . . . Parts Rejected 2 | . . . . . . . . . . . . . . . . . . . . . . . . . . . . . 2 Data Loss (minor) 2 | . . . . . . . . . 1 . . . . . . . . . . . . . . . . . . . 1 Data Loss (major) 3 | . . . . . . . 1 . . . . . . . . . . . . . . . . . . . . . 2 Misdirections 1 | . . . . . . . . . . . . . . . . . . . . . . . . . . . . . 1 Overload Shots . | . . . . . . . . . . . . . . . . . . . . . . . . . . . . . . Overflow Damage 2203 | . 62 91 4 275 31 101 19 12 138 40 15 73 33 18 360 75 . . . 74 . 46 48 41 102 96 84 142 223 Projectiles . | . . . . . . . . . . . . . . . . . . . . . . . . . . . . . . Explosions . | . . . . . . . . . . . . . . . . . . . . . . . . . . . . . . Melee 2203 | . 62 91 4 275 31 101 19 12 138 40 15 73 33 18 360 75 . . . 74 . 46 48 41 102 96 84 142 223 Knockbacks . | . . . . . . . . . . . . . . . . . . . . . . . . . . . . . . Impact . | . . . . . . . . . . . . . . . . . . . . . . . . . . . . . . Kinetic . | . . . . . . . . . . . . . . . . . . . . . . . . . . . . . . Secondary . | . . . . . . . . . . . . . . . . . . . . . . . . . . . . . . Self-Inflicted Damage 16 | . . . . . . . . . . . . . . . . . . . . . . . . . . . 16 . . Shots . | . . . . . . . . . . . . . . . . . . . . . . . . . . . . . . Rammed 1 | . . . . . . . . . . . . . . . . . . . . . . . . . . . 1 . . Targets Rammed 1 | . . . . . . . . . . . . . . . . . . . . . . . . . . . 1 . . Kicked . | . . . . . . . . . . . . . . . . . . . . . . . . . . . . . . Crushed . | . . . . . . . . . . . . . . . . . . . . . . . . . . . . . . Highest Temperature 284 | . 119 . 86 11 1 . 13 229 208 2 . 10 . 9 9 284 174 . 213 1 3 5 2 . . . 2 . 245 Average Temperature 80 | . 30 . 48 5 1 . 11 51 87 1 . 5 . 4 3 104 91 . 112 1 3 2 1 . . . 2 . 116 Received Heat Transfer 2021 | . 72 48 18 582 21 27 50 280 105 36 . 25 . 122 136 79 12 12 6 32 14 66 20 16 . 140 12 8 82 Effects 1 | . . . . . . . . . . . . . . . . 1 . . . . . . . . . . . . . Energy Bleed 1 | . . . . . . . . . . . . . . . . 1 . . . . . . . . . . . . . Siege Activations . | . . . . . . . . . . . . . . . . . . . . . . . . . . . . . . Martial Activations . | . . . . . . . . . . . . . . . . . . . . . . . . . . . . . . Shielding Activations . | . . . . . . . . . . . . . . . . . . . . . . . . . . . . . . Robots Disrupted . | . . . . . . . . . . . . . . . . . . . . . . . . . . . . . . Combat Hostiles . | . . . . . . . . . . . . . . . . . . . . . . . . . . . . . . Robots Corrupted . | . . . . . . . . . . . . . . . . . . . . . . . . . . . . . . Combat Hostiles . | . . . . . . . . . . . . . . . . . . . . . . . . . . . . . . Parts Fried . | . . . . . . . . . . . . . . . . . . . . . . . . . . . . . . Impact Corruptions . | . . . . . . . . . . . . . . . . . . . . . . . . . . . . . . Robots Melted . | . . . . . . . . . . . . . . . . . . . . . . . . . . . . . . Combat Hostiles . | . . . . . . . . . . . . . . . . . . . . . . . . . . . . . . Parts Melted 1 | . . . . 1 . . . . . . . . . . . . . . . . . . . . . . . . . Heat Transferred . | . . . . . . . . . . . . . . . . . . . . . . . . . . . . . . Parts Sabotaged 6 | . . . . . . . . . . . . . . 2 . . . . . . . . 4 . . . . . . Parts Stolen . | . . . . . . . . . . . . . . . . . . . . . . . . . . . . . . Parts Stripped . | . . . . . . . . . . . . . . . . . . . . . . . . . . . . . . Power Chain Reactions . | . . . . . . . . . . . . . . . . . . . . . . . . . . . . . . Alert | -11 -10 -9 -8 -7 -7 -7 -7 -7 -6 -6 -6 -6 -6 -5 -5 -5 -5 -5 -5 -4 -4 -4 -4 -3 -3 -3 -2 -2 -2 ------- Run | Yrd Mat Mat Mat Fac Low Low Zio Dee Pro Fac Low Low Dat Pro Fac Ext Cet Arc Hub Fac Upp Upp War Pro Res Qua Res Tes Sec Maximum Alert Level 4 | . 1 1 1 4 . . . . . 3 . . . . 2 3 3 1 2 2 . . . . 3 2 2 2 3 Low Security (%) 12 | 100 97 60 59 13 . . . . . . . . . . . . . . 52 . . . . . . . . . . Level 1 28 | . 2 39 40 16 . . . . . 20 . . . . 47 26 . 100 10 90 . . . . . . 70 95 20 Level 2 32 | . . . . 20 . . . . . 60 . . . . 52 24 71 . 36 9 . . . . . 100 29 4 38 Level 3 25 | . . . . 47 . . . . . 19 . . . . . 49 28 . . . . . . . 100 . . . 41 Level 4 . | . . . . 2 . . . . . . . . . . . . . . . . . . . . . . . . . Level 5 . | . . . . . . . . . . . . . . . . . . . . . . . . . . . . . . High Security . | . . . . . . . . . . . . . . . . . . . . . . . . . . . . . . Max Security . | . . . . . . . . . . . . . . . . . . . . . . . . . . . . . . Peak Influence 1207 | . 204 284 218 1207 . . . . . 761 . . . . 523 1069 740 306 532 415 . . . . 837 559 471 429 954 Initial 750 | . . 81 115 95 . . . . . 398 . . . . 360 252 584 252 93 245 . . . . 750 462 303 249 229 Average 497 | . 99 146 183 615 . . . . . 557 . . . . 401 679 672 274 288 328 . . . . 769 497 364 308 615 Influence Increases 11368 | . 365 293 175 1616 190 200 10 . 575 728 90 30 20 815 567 1055 289 164 679 255 60 175 170 120 933 167 251 270 1106 Destroy 0b10 Robot/C 5640 | . 220 180 120 900 100 160 . . 460 280 80 20 20 340 360 460 120 80 180 180 60 120 20 100 80 100 160 80 660 Destroy 0b10 Robot/NC 290 | . 25 20 . 65 . 10 10 . 10 20 . 10 . . 15 30 5 . 20 5 . . . . 20 . 5 15 5 Destroy Leader 990 | . 44 32 40 202 30 30 . . 30 56 10 . . 40 70 54 10 . 30 30 . 10 . 20 22 20 30 30 150 Allied During Kill 765 | . . . . . . . . . . . . . . . . 421 135 80 116 . . . . . . . . 13 . Successful Hack 116 | . . . 6 41 . . . . . . . . . . . 4 1 . . 4 . . . . 10 21 8 . 21 Select Force Hacks 150 | . . . . . . . . . . . . . . . . . . . 150 . . . . . . . . . . Disable Machine 150 | . . . . . . . . . . . . . . . . . . . 30 . . . . . . . . 45 75 Anti-Garrison Action 300 | . . . . 150 . . . . . 150 . . . . . . . . . . . . . . . . . . . Destroy Structure 357 | . 1 1 9 18 . . . . . 12 . . . . 32 26 18 4 48 6 . . . . 36 26 3 87 30 Advance Influence 900 | . . . . . . . . . . 150 . . . . . . . . . . . . . . 750 . . . . Partial Spotted 150 | . . . . 45 . . . . . . . . . . . 15 . . . 15 . . . . 15 . . . 60 Lose Combat Pursuer 1560 | . 75 60 . 195 60 . . . 75 60 . . . 435 90 45 . . 105 15 . 45 150 . . . 45 . 105 Influence Decreases 10431 | . 170 214 239 623 526 265 812 . 180 369 360 193 341 242 623 527 703 529 443 387 207 153 263 272 110 451 346 305 578 Entered New Map 5939 | . . 114 159 115 446 165 802 . . 147 280 93 321 . 213 265 461 379 173 257 137 43 245 152 . 361 236 195 180 Time Decay 4072 | . 170 100 80 498 80 100 10 . 180 222 80 100 20 242 410 262 222 50 30 130 70 110 18 120 110 90 110 90 368 Lost Part 40 | . . . . 10 . . . . . . . . . . . . . . . . . . . . . . . . 30 Lost Ally 380 | . . . . . . . . . . . . . . . . . 20 100 240 . . . . . . . . 20 . Squads Dispatched 76 | . 1 1 . 18 . 1 . . 1 5 . . . 1 9 2 1 . 9 2 . . . . 4 3 3 3 12 Investigation 23 | . . . . 6 . 1 . . . 1 . . . . 3 . 1 . 7 1 . . . . 1 . 1 . 1 Extermination 11 | . . . . 2 . . . . . . . . . . 2 . . . . 1 . . . . 1 1 1 1 2 Reinforcement 24 | . 1 1 . 4 . . . . . 2 . . . . 1 1 . . 2 . . . . . 2 2 1 2 5 Assault 12 | . . . . 5 . . . . 1 2 . . . 1 1 1 . . . . . . . . . . . . 1 Garrison 1 | . . . . 1 . . . . . . . . . . . . . . . . . . . . . . . . . Intercept 5 | . . . . . . . . . . . . . . . 2 . . . . . . . . . . . . . 3 Searches Triggered . | . . . . . . . . . . . . . . . . . . . . . . . . . . . . . . Construction Impeded 1 | . . . . . . . . . . . . . . . . . . . . . . . . . . . . 1 . Haulers Reinforced . | . . . . . . . . . . . . . . . . . . . . . . . . . . . . . . Active Scanning Responses . | . . . . . . . . . . . . . . . . . . . . . . . . . . . . . . Cargo Convoy Interrupts . | . . . . . . . . . . . . . . . . . . . . . . . . . . . . . . Stealth | -11 -10 -9 -8 -7 -7 -7 -7 -7 -6 -6 -6 -6 -6 -5 -5 -5 -5 -5 -5 -4 -4 -4 -4 -3 -3 -3 -2 -2 -2 --------- Run | Yrd Mat Mat Mat Fac Low Low Zio Dee Pro Fac Low Low Dat Pro Fac Ext Cet Arc Hub Fac Upp Upp War Pro Res Qua Res Tes Sec Distress Signals 21 | . . 1 . 4 . . . . . 1 . . . . . 3 1 . 1 . . . . . 1 1 3 2 3 Communications Jammed . | . . . . . . . . . . . . . . . . . . . . . . . . . . . . . . Distress Signals . | . . . . . . . . . . . . . . . . . . . . . . . . . . . . . . Times Spotted 574 | . 20 19 6 78 9 8 15 13 26 21 4 2 4 45 33 31 7 4 37 15 3 9 38 8 11 15 23 6 64 Peak Tracking Total 27 | . 6 11 3 7 3 4 11 5 9 7 4 1 2 13 8 5 5 3 27 6 3 5 21 3 4 8 9 4 20 Tactical Retreats 50 | . 2 4 . 6 2 . 2 . 2 2 . . . 11 3 2 . . 2 1 . 2 3 . . . 2 . 4 Traps | -11 -10 -9 -8 -7 -7 -7 -7 -7 -6 -6 -6 -6 -6 -5 -5 -5 -5 -5 -5 -4 -4 -4 -4 -3 -3 -3 -2 -2 -2 ------- Run | Yrd Mat Mat Mat Fac Low Low Zio Dee Pro Fac Low Low Dat Pro Fac Ext Cet Arc Hub Fac Upp Upp War Pro Res Qua Res Tes Sec Traps Triggered 10 | . 1 . 1 3 . . . . . . . . . . . 3 . . . 1 . . . . . . . . 1 Indirectly . | . . . . . . . . . . . . . . . . . . . . . . . . . . . . . . Trap Hack Attempts . | . . . . . . . . . . . . . . . . . . . . . . . . . . . . . . Triggered . | . . . . . . . . . . . . . . . . . . . . . . . . . . . . . . Disarmed . | . . . . . . . . . . . . . . . . . . . . . . . . . . . . . . Reprogrammed . | . . . . . . . . . . . . . . . . . . . . . . . . . . . . . . Reused . | . . . . . . . . . . . . . . . . . . . . . . . . . . . . . . Traps Extracted . | . . . . . . . . . . . . . . . . . . . . . . . . . . . . . . Installed 3 | . . . . . . . . . . . . 3 . . . . . . . . . . . . . . . . . Triggered . | . . . . . . . . . . . . . . . . . . . . . . . . . . . . . . Machines | -11 -10 -9 -8 -7 -7 -7 -7 -7 -6 -6 -6 -6 -6 -5 -5 -5 -5 -5 -5 -4 -4 -4 -4 -3 -3 -3 -2 -2 -2 ---------- Run | Yrd Mat Mat Mat Fac Low Low Zio Dee Pro Fac Low Low Dat Pro Fac Ext Cet Arc Hub Fac Upp Upp War Pro Res Qua Res Tes Sec Machines Disabled 15 | . . . . 1 . . . . . 1 . . . . . 2 1 . 2 . . . . . . . . 3 5 Max in Single Turn 1 | . . . . 1 . . . . . 1 . . . . . 1 1 . . . . . . . . . . 1 1 Garrison Access 2 | . . . . 1 . . . . . 1 . . . . . . . . . . . . . . . . . . . Network Hub 3 | . . . . . . . . . . . . . . . . . . . 3 . . . . . . . . . . Machines Repaired . | . . . . . . . . . . . . . . . . . . . . . . . . . . . . . . Machines Dismantled . | . . . . . . . . . . . . . . . . . . . . . . . . . . . . . . Machines Sabotaged 3 | . . . . . . . . . . . . . . . . . . . 3 . . . . . . . . . . Overloaded Fab Kills . | . . . . . . . . . . . . . . . . . . . . . . . . . . . . . . Hacking | -11 -10 -9 -8 -7 -7 -7 -7 -7 -6 -6 -6 -6 -6 -5 -5 -5 -5 -5 -5 -4 -4 -4 -4 -3 -3 -3 -2 -2 -2 --------- Run | Yrd Mat Mat Mat Fac Low Low Zio Dee Pro Fac Low Low Dat Pro Fac Ext Cet Arc Hub Fac Upp Upp War Pro Res Qua Res Tes Sec Machines Accessed 56 | . . . 1 9 . 1 . . . 2 . . 4 . 6 10 4 . 7 2 . . 2 . 2 1 2 . 3 Terminals 39 | . . . 1 5 . 1 . . . 2 . . . . 2 10 4 . 7 1 . . . . 2 1 1 . 2 Fabricators 6 | . . . . 3 . . . . . . . . . . 1 . . . . 1 . . . . . . 1 . . Repair Stations 4 | . . . . 1 . . . . . . . . . . 2 . . . . . . . . . . . . . 1 Recycling Units . | . . . . . . . . . . . . . . . . . . . . . . . . . . . . . . Scanalyzers 1 | . . . . . . . . . . . . . . . 1 . . . . . . . . . . . . . . Garrison Access . | . . . . . . . . . . . . . . . . . . . . . . . . . . . . . . Total Hacks 126 | . . . 1 24 . 1 . . . 5 . . 27 . 11 11 8 . 10 6 . . 2 . 5 1 10 . 4 Successful 95 | . . . 1 13 . 1 . . . 1 . . 27 . 9 10 7 . 9 5 . . 2 . 1 1 5 . 3 Failed 30 | . . . . 10 . . . . . 4 . . . . 2 1 1 . 1 1 . . . . 4 . 5 . 1 Catastrophic 3 | . . . . . . . . . . . . . . . . . . . . . . . . . 2 . 1 . . Database Lockouts 1 | . . . . 1 . . . . . . . . . . . . . . . . . . . . . . . . . Manual 65 | . . . 1 12 . 5 4 . . 5 . . . . 6 . 2 . 10 2 . . 1 . 5 1 7 . 4 Terminals 73 | . . . 1 14 . 1 . . . 5 . . . . 4 11 8 . 10 3 . . . . 5 1 7 . 3 Fabricators 16 | . . . . 7 . . . . . . . . . . 3 . . . . 3 . . . . . . 3 . . Repair Stations 7 | . . . . 3 . . . . . . . . . . 3 . . . . . . . . . . . . . 1 Recycling Units . | . . . . . . . . . . . . . . . . . . . . . . . . . . . . . . Scanalyzers 1 | . . . . . . . . . . . . . . . 1 . . . . . . . . . . . . . . Garrison Access . | . . . . . . . . . . . . . . . . . . . . . . . . . . . . . . Terminal Hacks 67 | . . . 1 5 . 1 . . . 1 . . 27 . 2 10 7 . 2 2 . . 2 . 1 1 3 . 2 Record 18 | . . . . . . 1 . . . . . . 11 . . . 6 . . . . . . . . . . . . Part Schematic 15 | . . . . 3 . . . . . . . . 9 . 1 . . . . 1 . . . . . . 1 . . Robot Schematic 4 | . . . . . . . . . . . . . 4 . . . . . . . . . . . . . . . . Prototype ID Bank 3 | . . . . . . . . . . . . . 3 . . . . . . . . . . . . . . . . Open Door 13 | . . . . . . . . . . . . . . . . 10 1 . . . . . 2 . . . . . . Level Access Points 2 | . . . 1 . . . . . . . . . . . . . . . 1 . . . . . . . . . . Branch Access Points 6 | . . . . 1 . . . . . 1 . . . . 1 . . . . 1 . . . . 1 . 1 . . Fabricator Index 2 | . . . . 1 . . . . . . . . . . . . . . . . . . . . . . 1 . . Zone Layout 4 | . . . . . . . . . . . . . . . . . . . 1 . . . . . . 1 . . 2 Fabricator Hacks 13 | . . . . 6 . . . . . . . . . . 2 . . . . 3 . . . . . . 2 . . Load Schematic 7 | . . . . 3 . . . . . . . . . . 1 . . . . 2 . . . . . . 1 . . Build 6 | . . . . 3 . . . . . . . . . . 1 . . . . 1 . . . . . . 1 . . Repair Station Hacks 3 | . . . . 1 . . . . . . . . . . 2 . . . . . . . . . . . . . . Scan Component 2 | . . . . 1 . . . . . . . . . . 1 . . . . . . . . . . . . . . Repair 1 | . . . . . . . . . . . . . . . 1 . . . . . . . . . . . . . . Recycling Unit Hacks . | . . . . . . . . . . . . . . . . . . . . . . . . . . . . . . Scanalyzer 1 | . . . . . . . . . . . . . . . 1 . . . . . . . . . . . . . . Insert Component 1 | . . . . . . . . . . . . . . . 1 . . . . . . . . . . . . . . Garrison Access Hacks . | . . . . . . . . . . . . . . . . . . . . . . . . . . . . . . Unauthorized Hacks 11 | . . . . 1 . . . . . . . . . . 2 . . . 7 . . . . . . . . . 1 Terminals 7 | . . . . . . . . . . . . . . . . . . . 7 . . . . . . . . . . Sabotage 7 | . . . . . . . . . . . . . . . . . . . 7 . . . . . . . . . . Fabricators 2 | . . . . 1 . . . . . . . . . . 1 . . . . . . . . . . . . . . Prioritize 2 | . . . . 1 . . . . . . . . . . 1 . . . . . . . . . . . . . . Repair Stations 2 | . . . . . . . . . . . . . . . 1 . . . . . . . . . . . . . 1 Patch 2 | . . . . . . . . . . . . . . . 1 . . . . . . . . . . . . . 1 Recycling Units . | . . . . . . . . . . . . . . . . . . . . . . . . . . . . . . Scanalyzers . | . . . . . . . . . . . . . . . . . . . . . . . . . . . . . . Garrison Access . | . . . . . . . . . . . . . . . . . . . . . . . . . . . . . . Data Cores Recovered 3 | . . 1 . . . . . . . . . . . . . 1 . . . 1 . . . . . . . . . Used . | . . . . . . . . . . . . . . . . . . . . . . . . . . . . . . Hacking Detections 25 | . . . . 9 . 1 . . . 1 . . . . 4 4 1 . . 1 . . . . 1 . 2 . 1 Full Trace Events 14 | . . . . 6 . 1 . . . 1 . . . . 2 . 1 . . 1 . . . . 1 . 1 . . Feedback Events . | . . . . . . . . . . . . . . . . . . . . . . . . . . . . . . Feedback Blocked . | . . . . . . . . . . . . . . . . . . . . . . . . . . . . . . Robot Schematics Acquired 9 | . . . . . . . . . . . . . 4 . . . . . . . . . . . . 3 . . 2 Robots Built . | . . . . . . . . . . . . . . . . . . . . . . . . . . . . . . Authchips . | . . . . . . . . . . . . . . . . . . . . . . . . . . . . . . Time . | . . . . . . . . . . . . . . . . . . . . . . . . . . . . . . Total Robot Build Rating . | . . . . . . . . . . . . . . . . . . . . . . . . . . . . . . Part Schematics Acquired 21 | . . . . 3 . . . . . . . . 9 . 1 . . . . 1 . . . . . 1 1 . 5 Parts Built 11 | . . . . 6 . . . . . . . . . . 2 . . . . 2 . . . . . . 1 . . Authchips . | . . . . . . . . . . . . . . . . . . . . . . . . . . . . . . Time 248 | . . . . 126 . . . . . . . . . . 21 . . . . 39 . . . . . . 62 . . Total Part Build Rating 53 | . . . . 24 . . . . . . . . . . 8 . . . . 14 . . . . . . 7 . . Parts Repaired 1 | . . . . . . . . . . . . . . . 1 . . . . . . . . . . . . . . Time 50 | . . . . . . . . . . . . . . . 50 . . . . . . . . . . . . . . Parts Recycled . | . . . . . . . . . . . . . . . . . . . . . . . . . . . . . . Recycled Matter . | . . . . . . . . . . . . . . . . . . . . . . . . . . . . . . Retrieved Matter . | . . . . . . . . . . . . . . . . . . . . . . . . . . . . . . Retrieved Components . | . . . . . . . . . . . . . . . . . . . . . . . . . . . . . . Parts Scanalyzed . | . . . . . . . . . . . . . . . . . . . . . . . . . . . . . . Part Schematics Acquired . | . . . . . . . . . . . . . . . . . . . . . . . . . . . . . . Parts Damaged . | . . . . . . . . . . . . . . . . . . . . . . . . . . . . . . Bothacking | -11 -10 -9 -8 -7 -7 -7 -7 -7 -6 -6 -6 -6 -6 -5 -5 -5 -5 -5 -5 -4 -4 -4 -4 -3 -3 -3 -2 -2 -2 ------------ Run | Yrd Mat Mat Mat Fac Low Low Zio Dee Pro Fac Low Low Dat Pro Fac Ext Cet Arc Hub Fac Upp Upp War Pro Res Qua Res Tes Sec Used RIF Installer . | . . . . . . . . . . . . . . . . . . . . . . . . . . . . . . Robots Hacked . | . . . . . . . . . . . . . . . . . . . . . . . . . . . . . . Non-combat . | . . . . . . . . . . . . . . . . . . . . . . . . . . . . . . Combat . | . . . . . . . . . . . . . . . . . . . . . . . . . . . . . . Robot Hacks Applied . | . . . . . . . . . . . . . . . . . . . . . . . . . . . . . . Relay Couplers Released 1 | . . . . . . . . . . 1 . . . . . . . . . . . . . . . . . . . Machine Destruction 1 | . . . . . . . . . . 1 . . . . . . . . . . . . . . . . . . . Fabnet Peak Effective % . | . . . . . . . . . . . . . . . . . . . . . . . . . . . . . . Robots Rewired 4 | . . . . . . . . . . . . . . . . 3 . . . . . . . . . . . 1 . Allies Hacked . | . . . . . . . . . . . . . . . . . . . . . . . . . . . . . . Hacks Repelled . | . . . . . . . . . . . . . . . . . . . . . . . . . . . . . . Allies | -11 -10 -9 -8 -7 -7 -7 -7 -7 -6 -6 -6 -6 -6 -5 -5 -5 -5 -5 -5 -4 -4 -4 -4 -3 -3 -3 -2 -2 -2 -------- Run | Yrd Mat Mat Mat Fac Low Low Zio Dee Pro Fac Low Low Dat Pro Fac Ext Cet Arc Hub Fac Upp Upp War Pro Res Qua Res Tes Sec Total Allies 28 | . . . . . . . 4 . . . . . . . . 18 5 . . . . . . . . . . 1 . Largest Group 21 | . . . . . . . 4 . . . . . . . . 18 21 19 13 . . . . . . . . 1 . Highest-Rated Group 1061 | . . . . . . . 152 . . . . . . . . 644 1061 996 718 . . . . . . . . 161 . Highest-Rated Ally 161 | . . . . . . . 40 . . . . . . . . 159 159 159 96 . . . . . . . . 161 . Total Orders . | . . . . . . . . . . . . . . . . . . . . . . . . . . . . . . Ally Attacks 204 | . . . . . . . . . . . . . . . . 54 24 38 70 . . . . . . . . 18 . Total Damage 5994 | . . . . . . . . . . . . . . . . 1425 385 801 2387 . . . . . . . . 996 . Kills 40 | . . . . . . . . . . . . . . . . 14 6 1 14 . . . . . . . . 5 . Allies Corrupted 3 | . . . . . . . . . . . . . . . . . . . 3 . . . . . . . . . . Allies Melted . | . . . . . . . . . . . . . . . . . . . . . . . . . . . . . . Intel | -11 -10 -9 -8 -7 -7 -7 -7 -7 -6 -6 -6 -6 -6 -5 -5 -5 -5 -5 -5 -4 -4 -4 -4 -3 -3 -3 -2 -2 -2 ------- Run | Yrd Mat Mat Mat Fac Low Low Zio Dee Pro Fac Low Low Dat Pro Fac Ext Cet Arc Hub Fac Upp Upp War Pro Res Qua Res Tes Sec Active Infowar (turns) . | . . . . . . . . . . . . . . . . . . . . . . . . . . . . . . Robot Analysis Total 151 | . . . . . . . . . . . . . 151 . . . . . . . . . . . . . . . . Derelict Logs Recovered 11 | . . . . . . 2 . . 2 . 2 1 . 3 . . . . . . 1 . . . . . . . . Drone Launches . | . . . . . . . . . . . . . . . . . . . . . . . . . . . . . . Drone Recoveries . | . . . . . . . . . . . . . . . . . . . . . . . . . . . . . . Exploration | -11 -10 -9 -8 -7 -7 -7 -7 -7 -6 -6 -6 -6 -6 -5 -5 -5 -5 -5 -5 -4 -4 -4 -4 -3 -3 -3 -2 -2 -2 ------------- Run | Yrd Mat Mat Mat Fac Low Low Zio Dee Pro Fac Low Low Dat Pro Fac Ext Cet Arc Hub Fac Upp Upp War Pro Res Qua Res Tes Sec Turns Passed 10994 | 16 391 202 174 1321 167 217 694 540 390 472 163 204 187 565 994 573 468 102 65 262 158 221 416 334 236 195 232 188 847 Spaces Moved 14480 | 21 573 242 246 1620 300 195 1310 939 462 822 241 503 166 1090 884 471 219 64 118 332 308 297 728 161 381 283 319 309 876 Core 285 | 21 176 . . . . . . . . . . . . . 9 . . . . . . . . . . . . . 79 Treads . | . . . . . . . . . . . . . . . . . . . . . . . . . . . . . . Legs . | . . . . . . . . . . . . . . . . . . . . . . . . . . . . . . Wheels . | . . . . . . . . . . . . . . . . . . . . . . . . . . . . . . Hover . | . . . . . . . . . . . . . . . . . . . . . . . . . . . . . . Flight 14195 | . 397 242 246 1620 300 195 1310 939 462 822 241 503 166 1090 875 471 219 64 118 332 308 297 728 161 381 283 319 309 797 Fastest Speed 32 | 50 37 37 37 32 32 32 32 32 32 32 32 32 32 32 32 40 40 40 40 40 40 40 40 40 40 40 40 40 40 Average Speed 35 | 50 41 37 37 33 32 32 32 32 32 32 32 32 32 32 39 40 40 40 40 40 40 40 40 40 40 40 40 40 41 Slowest Speed 107 | 50 50 37 37 40 32 32 32 32 32 32 32 32 32 107 100 40 40 40 40 40 40 40 40 40 40 40 40 40 100 Overloaded Moves . | . . . . . . . . . . . . . . . . . . . . . . . . . . . . . . Propulsion Burnouts . | . . . . . . . . . . . . . . . . . . . . . . . . . . . . . . Robots Hopped 36 | . 1 . . . . . . . . . . . . . . 2 . . 3 . . . 3 . . 7 2 2 16 Potential Cave-ins 6 | . . . . 4 . . . . . . . . . . . . . . . . . . . . . . . . 2 Cave-ins Triggered 1 | . . . . 1 . . . . . . . . . . . . . . . . . . . . . . . . . Exploration Rate (%) 47 | 3 90 27 29 37 41 42 88 81 52 17 45 58 81 94 26 70 75 75 26 11 55 42 76 26 15 50 10 52 33 Regions Visited 29 Branch Regions 20 Pre-discovered Areas 33 | . . . . . . . . . . . 1 . 32 . . . . . . . . . . . . . . . . Known Exits Taken 10 | . . . 1 1 . 1 . . 1 1 . . . . 1 . . . 1 1 . . . . 1 . 1 . . Unknown Exits Taken 19 | 1 1 1 . . 1 . 1 1 . . 1 1 1 1 . 1 1 1 . . 1 1 1 1 . 1 . 1 . Scrap Searched 10 | . . . . . . . 1 . 3 . 1 . . 3 . . . . . . 2 . . . . . . . . Spaces Dug 131 | . . 1 9 21 . . . 1 2 13 . 2 . . 16 1 . . 6 3 1 4 1 . 19 14 1 5 11 Terrain Destroyed 131 | . . 1 9 21 . . . 1 2 13 . 2 . . 16 1 . . 6 3 1 4 1 . 19 14 1 5 11 Melee 131 | . . 1 9 21 . . . 1 2 13 . 2 . . 16 1 . . 6 3 1 4 1 . 19 14 1 5 11 Projectile . | . . . . . . . . . . . . . . . . . . . . . . . . . . . . . . AOE . | . . . . . . . . . . . . . . . . . . . . . . . . . . . . . . Terrain Rammed . | . . . . . . . . . . . . . . . . . . . . . . . . . . . . . . Walls Destroyed . | . . . . . . . . . . . . . . . . . . . . . . . . . . . . . . Machines Disabled . | . . . . . . . . . . . . . . . . . . . . . . . . . . . . . . Actions | -11 -10 -9 -8 -7 -7 -7 -7 -7 -6 -6 -6 -6 -6 -5 -5 -5 -5 -5 -5 -4 -4 -4 -4 -3 -3 -3 -2 -2 -2 --------- Run | Yrd Mat Mat Mat Fac Low Low Zio Dee Pro Fac Low Low Dat Pro Fac Ext Cet Arc Hub Fac Upp Upp War Pro Res Qua Res Tes Sec Total 19133 | 24 650 307 297 2199 355 331 1560 1146 655 994 317 535 266 1263 1464 813 591 134 125 440 338 373 845 417 436 333 398 358 1169 Wait 2856 | . 29 13 21 310 30 94 212 99 79 105 57 12 47 92 455 219 347 56 2 41 18 8 98 234 7 22 24 20 105 Move 14386 | 20 570 241 245 1618 299 194 1309 938 461 821 240 502 165 1089 883 466 218 63 112 331 307 296 722 160 380 269 315 304 848 Hop 29 | . 1 . . . . . . . . . . . . . . 2 . . 2 . . . 2 . . 6 2 2 12 Pick Up 46 | . . . 1 3 . . 4 1 2 4 1 2 2 1 6 3 1 2 . 2 . 2 4 . . . 1 . 4 Fast Attach 44 | 3 5 3 . 11 . . . 4 . 1 . . . 2 2 . . . . 1 . . 4 . 1 . 1 . 6 Attach 15 | . . . . . . 1 . 2 2 . . . 1 . 2 1 1 1 . . . 1 . . . . 1 . 2 Detach 11 | . . . . . . . . 2 1 . . . 2 . . . 1 1 . 1 . . . . . . . . 3 Swap 12 | . . 3 . 6 . . . 1 . . . . . . 1 . . . . . . . . 1 . . . . . Drop 64 | 1 2 4 . 12 1 . 2 6 2 3 2 1 1 2 4 2 3 . . 2 . 4 1 2 1 . 1 . 5 Fire 16 | . 16 . . . . . . . . . . . . . . . . . . . . . . . . . . . . Melee 1023 | . 23 31 20 136 19 22 29 41 62 46 12 13 43 52 77 50 12 7 9 26 5 34 6 16 34 29 28 15 126 Ram . | . . . . . . . . . . . . . . . . . . . . . . . . . . . . . . Kick . | . . . . . . . . . . . . . . . . . . . . . . . . . . . . . . Crush . | . . . . . . . . . . . . . . . . . . . . . . . . . . . . . . Escape Stasis 82 | . . . . 9 . . . . . . . . . . . 45 . . . 18 . . . . . . . . 10 Rewire 14 | . . . . . . . . . . . . . . . . 7 . . . . . . . . . . . 7 . Trap 3 | . . . . . . . . . . . . 3 . . . . . . . . . . . . . . . . . Miscellaneous 532 | . 4 12 10 94 6 20 4 52 46 14 5 2 5 25 34 18 8 4 . 18 8 28 8 4 13 7 25 10 48 Route ------- -11/Scrapyard -10/Materials (discovered 3 exits: *Mat / [*Min x2]) -9/Materials (discovered 2 exits: *Mat / [*Min]) -8/Materials (discovered 3 exits: *Fac x3) -7/Factory (discovered 2 exits: *Low x2) -7/Lower Caves -7/Lower Caves -7/Zion (discovered 2 exits: [*Dee] / [*Pro]) -7/Deep Caves -6/Proximity Caves -6/Factory (discovered 3 exits: *Fac / *Low x2) -6/Lower Caves -6/Lower Caves (discovered 2 exits: *Fac / *Dat) -6/Data Miner -5/Proximity Caves -5/Factory (discovered 5 exits: *Fac / *Upp x2 / *Ext x2) -5/Extension (discovered 2 exits: *Fac / *Cet) -5/Cetus -5/Archives (discovered 3 exits: *Fac / *Hub x2) -5/Hub_04(d) (discovered 4 exits: *Fac x4) -4/Factory (discovered 3 exits: *Upp x2 / Arm) -4/Upper Caves -4/Upper Caves -4/Warlord -3/Proximity Caves -3/Research (discovered 2 exits: *Qua x2) -3/Quarantine -2/Research (discovered 3 exits: [*Acc] / *Tes x2) -2/Testing (discovered 2 exits: *Sec / [*Frg]) -2/Section 7 (discovered 1 exit: [*Acc]) History --------- Turn | Location | Event 1 | -11/Scrapyard | Upgraded with Propulsion slot (x1) 1 | -11/Scrapyard | Upgraded with Weapon slot (x1) 8 | -11/Scrapyard | Discovered new exit (range 15) 17 | -11/Scrapyard | Entered Materials 55 | -10/Materials | Discovered new exit (range 16) 205 | -10/Materials | Discovered new exit (range 12) 276 | -10/Materials | Discovered new exit (range 14) 408 | -10/Materials | Entered another Materials area 410 | -9/Materials | Reached level 2 418 | -9/Materials | Upgraded with Utility slot (x1) 471 | -9/Materials | Discovered new exit (range 16) 498 | -9/Materials | Reached level 3 513 | -9/Materials | Core integrity fell below 50% 604 | -9/Materials | Discovered new exit (range 16) 610 | -9/Materials | Entered another Materials area 612 | -8/Materials | Reached level 4 677 | -8/Materials | Reached level 5 704 | -8/Materials | Build established: Hacker-Gladiator 712 | -8/Materials | Identified exit to Factory 784 | -8/Materials | Entered Factory 786 | -7/Factory | Reached level 6 986 | -7/Factory | Core integrity fell below 50% 1116 | -7/Factory | Reached level 7 1184 | -7/Factory | First assault squad dispatched 1233 | -7/Factory | Reached level 8 1451 | -7/Factory | Discovered new exit (range 12) 1508 | -7/Factory | Build established: Hacker-Sprinter 1558 | -7/Factory | Fabricated Greatsword? 1652 | -7/Factory | Upgraded with Utility slot (x2) 1691 | -7/Factory | Fabricated Core Analyzer? 1727 | -7/Factory | Reached level 9 1775 | -7/Factory | Crushed by falling debris 1852 | -7/Factory | Fabricated Microactuators? 1870 | -7/Factory | Upgraded with Utility slot (x1) 1950 | -7/Factory | Allied Derelicts emerged from ambush trap array 1969 | -7/Factory | Central database locked down 2026 | -7/Factory | Garrison activated, responded to threat 2064 | -7/Factory | Reached level 10 2102 | -7/Factory | Identified exit to Lower Caves 2105 | -7/Factory | Entered Lower Caves 2112 | -7/Lower Caves | Reached level 11 2154 | -7/Lower Caves | Spotted B-75 Beast 2173 | -7/Lower Caves | Destroyed B-75 Beast 2188 | -7/Lower Caves | Discovered new exit (range 8) 2272 | -7/Lower Caves | Entered another Lower Caves area 2297 | -7/Lower Caves | Learned Factory terminal intel 2422 | -7/Lower Caves | Reached level 12 2433 | -7/Lower Caves | Identified exit to Zion 2477 | -7/Lower Caves | Upgraded with Utility slot (x1) 2489 | -7/Lower Caves | Entered Zion 2521 | -7/Zion | System corruption cleaned by Quarantine Array 2599 | -7/Zion | Met Imprinter 3037 | -7/Zion | Discovered new exit (range 16) 3048 | -7/Zion | Found CR-A16's Pointy Stick 3109 | -7/Zion | Imprinted 3111 | -7/Zion | Declared Zion's savior 3123 | -7/Zion | Attacked by Zionites 3129 | -7/Zion | Destroyed Imprinter 3130 | -7/Zion | Extracted access codes from Imprinter's data core 3162 | -7/Zion | Opened final containment barrier to the Deep Caves 3181 | -7/Zion | Discovered new exit (range 5) 3182 | -7/Zion | Saw the warning signs outside the Deep Caves entrance 3183 | -7/Zion | Entered Deep Caves 3185 | -7/Deep Caves | Reached level 13 3321 | -7/Deep Caves | Found Prototype Protection 3321 | -7/Deep Caves | Identified Zio. Weapon Casing 3585 | -7/Deep Caves | Discovered new exit (range 7) 3604 | -7/Deep Caves | Spotted AG-76988 3722 | -7/Deep Caves | Core integrity fell below 20% 3723 | -7/Deep Caves | Entered Proximity Caves 3725 | -6/Proximity Caves | Reached level 14 3726 | -6/Proximity Caves | Spotter reported a threat 3734 | -6/Proximity Caves | Learned Factory trap positions 3735 | -6/Proximity Caves | Identified exit to Factory 3796 | -6/Proximity Caves | Attracted the attention of an 0b10 outpost 3931 | -6/Proximity Caves | Reached level 15 3973 | -6/Proximity Caves | Upgraded with Utility slot (x1) 4113 | -6/Proximity Caves | Entered Factory 4114 | -6/Factory | Loaded intel: 127 trap records 4115 | -6/Factory | Loaded intel: 26 terminal locations 4115 | -6/Factory | Reached level 16 4213 | -6/Factory | Reached level 17 4276 | -6/Factory | Discovered new exit (range 5) 4361 | -6/Factory | Identified exit to Lower Caves 4569 | -6/Factory | Reached level 18 4585 | -6/Factory | Entered Lower Caves 4737 | -6/Lower Caves | Discovered new exit (range 8) 4748 | -6/Lower Caves | Entered another Lower Caves area 4750 | -6/Lower Caves | Discovered new exit (range 10) 4898 | -6/Lower Caves | Learned 4 Factory zone layouts 4949 | -6/Lower Caves | Discovered new exit (range 7) 4952 | -6/Lower Caves | Entered Data Miner 4952 | -6/Data Miner | Discovered new exit (range 6) 4959 | -6/Data Miner | Met Data Miner 4967 | -6/Data Miner | Learned location of Section 7 (-2) 4967 | -6/Data Miner | Acquired the access code to Warlord's prototype stash 4973 | -6/Data Miner | Received God Mode back door access code from Data Miner 4976 | -6/Data Miner | Destroyed Data Miner 4978 | -6/Data Miner | Reached level 19 4978 | -6/Data Miner | Interfaced with the Data Conduit 4979 | -6/Data Miner | Found Prototype Hackware 5139 | -6/Data Miner | Entered Proximity Caves 5144 | -5/Proximity Caves | Spotted B-75 Beast 5169 | -5/Proximity Caves | Attracted the attention of an 0b10 outpost 5203 | -5/Proximity Caves | Reached level 20 5457 | -5/Proximity Caves | Learned Factory garrison access intel 5511 | -5/Proximity Caves | Learned Factory security intel 5516 | -5/Proximity Caves | Learned 8 Factory zone layouts 5530 | -5/Proximity Caves | Discovered new exit (range 8) 5704 | -5/Proximity Caves | Entered Factory 5705 | -5/Factory | Identified exit to Extension 5706 | -5/Factory | Identified exit to Factory 5706 | -5/Factory | Reached level 21 5708 | -5/Factory | Loaded intel: 313 machine locations 5709 | -5/Factory | Loaded intel: 4 garrison access locations 5806 | -5/Factory | Repaired Force Field 5832 | -5/Factory | Spotted B-75 Beast 5964 | -5/Factory | Identified System Mapper 5965 | -5/Factory | Upgraded with Utility slot (x1) 6045 | -5/Factory | Fabricated Force Booster (x2) 6111 | -5/Factory | Destroyed 7 combat bots 6123 | -5/Factory | Identified exit to Upper Caves 6278 | -5/Factory | Build established: Wizard-Gladiator 6304 | -5/Factory | First assault squad dispatched 6490 | -5/Factory | Reached level 22 6589 | -5/Factory | Intercept squad dispatched 6603 | -5/Factory | Spotted Tracker 6616 | -5/Factory | Destroyed Tracker 6664 | -5/Factory | Spotted Combat Programmer 6674 | -5/Factory | Destroyed Combat Programmer 6698 | -5/Factory | Entered Extension 6699 | -5/Extension | Loaded intel: 40 machine locations 6713 | -5/Extension | Rescued A7 6726 | -5/Extension | Rescued a captive Derelict 6730 | -5/Extension | Rescued a captive Derelict 6733 | -5/Extension | Rescued a captive Derelict 6733 | -5/Extension | Rescued a captive Derelict 6766 | -5/Extension | Rescued a captive Derelict 6883 | -5/Extension | Rescued a captive Derelict 6899 | -5/Extension | Spotted B-75 Beast 6946 | -5/Extension | Spotted B-75 Beast 6956 | -5/Extension | Destroyed B-75 Beast 6964 | -5/Extension | Reached level 23 6964 | -5/Extension | Allies destroyed B-75 Beast 6998 | -5/Extension | First assault squad dispatched 7013 | -5/Extension | Rescued a captive Derelict 7030 | -5/Extension | Rescued a captive Derelict 7033 | -5/Extension | Rescued a captive Derelict 7067 | -5/Extension | Rescued a captive Derelict 7089 | -5/Extension | Upgraded with Utility slot (x1) 7130 | -5/Extension | Rescued a captive Derelict 7132 | -5/Extension | Rescued a captive Derelict 7167 | -5/Extension | Rescued a captive Derelict 7168 | -5/Extension | Rescued a captive Derelict 7200 | -5/Extension | Discovered exit to Factory (range 10) 7200 | -5/Extension | Discovered new exit (range 6) 7271 | -5/Extension | Entered Cetus 7271 | -5/Cetus | Accompanied by 17 allies (A7) 7272 | -5/Cetus | Loaded intel: 24 machine locations 7276 | -5/Cetus | Acquired a Cetus Manufacturing Module code from A7 7277 | -5/Cetus | Spotted Cetus Guard 7277 | -5/Cetus | Spotted Cetus Guard 7278 | -5/Cetus | Spotted Cetus Guard 7284 | -5/Cetus | Spotted Cetus Guard 7288 | -5/Cetus | Allies destroyed Cetus Guard 7292 | -5/Cetus | Allies destroyed Cetus Guard 7294 | -5/Cetus | Allies destroyed Cetus Guard 7319 | -5/Cetus | Discovered new exit (range 16) 7333 | -5/Cetus | Started Cetus Manufacturing Module 7341 | -5/Cetus | Escorted A7 to Cetus Mainframe 7358 | -5/Cetus | Manufactured an Enhanced Grunt 7383 | -5/Cetus | Manufactured an Enhanced Grunt 7408 | -5/Cetus | Manufactured an Enhanced Grunt 7433 | -5/Cetus | Manufactured an Enhanced Grunt 7458 | -5/Cetus | Manufactured an Enhanced Grunt 7516 | -5/Cetus | Found a strange terminal 7739 | -5/Cetus | Entered Archives 7739 | -5/Archives | Accompanied by 19 allies (A7) 7740 | -5/Archives | Loaded intel: 8 machine locations 7744 | -5/Archives | Received a hacking code to weaken MAIN.C 7756 | -5/Archives | Unable to access archive contents 7760 | -5/Archives | Discovered exit to Factory (range 14) 7768 | -5/Archives | Discovered new exit (range 15) 7782 | -5/Archives | Discovered new exit (range 14) 7799 | -5/Archives | Lost 5 allies 7841 | -5/Archives | Entered Hub_04(d) 7841 | -5/Hub_04(d) | Accompanied by 13 allies 7842 | -5/Hub_04(d) | Loaded intel: 97 machine locations 7843 | -5/Hub_04(d) | Reached level 24 7850 | -5/Hub_04(d) | Network Hub disabled 7856 | -5/Hub_04(d) | Spotted Lightning 7856 | -5/Hub_04(d) | Spotted Lightning 7858 | -5/Hub_04(d) | Spotted Lightning 7858 | -5/Hub_04(d) | Discovered exit to Factory (range 7) 7858 | -5/Hub_04(d) | Network Hub disabled 7881 | -5/Hub_04(d) | Network Hub disabled 7887 | -5/Hub_04(d) | Spotted Lightning 7887 | -5/Hub_04(d) | Spotted Lightning 7887 | -5/Hub_04(d) | Spotted Lightning 7906 | -5/Hub_04(d) | Entered Factory 7907 | -4/Factory | Loaded intel: 303 machine locations 7911 | -4/Factory | Lost 7 allies 7923 | -4/Factory | Identified exit to Upper Caves 7923 | -4/Factory | Identified exit to Armory 8040 | -4/Factory | Reached level 25 8127 | -4/Factory | Fabricated Graphene Brace (x2) 8168 | -4/Factory | Entered Upper Caves 8216 | -4/Upper Caves | Attracted the attention of an 0b10 checkpoint 8311 | -4/Upper Caves | Learned Research security intel 8320 | -4/Upper Caves | Discovered new exit (range 15) 8326 | -4/Upper Caves | Entered another Upper Caves area 8411 | -4/Upper Caves | Upgraded with Weapon slot (x1) 8427 | -4/Upper Caves | Spotted B-86 Titan 8484 | -4/Upper Caves | Core integrity fell below 50% 8532 | -4/Upper Caves | Discovered new exit (range 12) 8547 | -4/Upper Caves | Entered Warlord 8646 | -4/Warlord | Rebuked by Warlord 8660 | -4/Warlord | Warlord's base attacked by MAIN.C 8872 | -4/Warlord | Opened Warlord's prototype stash 8874 | -4/Warlord | Found Exp. Armor Integrity Analyzer 8926 | -4/Warlord | Opened side exit 8960 | -4/Warlord | Discovered new exit (range 9) 8961 | -4/Warlord | Spotted Striker 8963 | -4/Warlord | Entered Proximity Caves 8965 | -3/Proximity Caves | Reached level 26 9006 | -3/Proximity Caves | Spotted B-86 Titan 9027 | -3/Proximity Caves | Spotter reported a threat 9038 | -3/Proximity Caves | Destroyed B-86 Titan 9056 | -3/Proximity Caves | Discovered new exit (range 10) 9122 | -3/Proximity Caves | Spotter reported a threat 9179 | -3/Proximity Caves | Spotter reported a threat 9196 | -3/Proximity Caves | Spotter reported a threat 9237 | -3/Proximity Caves | Spotter reported a threat 9268 | -3/Proximity Caves | Received a Behemoth hack from an annoying Tinkerer 9297 | -3/Proximity Caves | Entered Research 9299 | -3/Research | Loaded intel: 116 machine locations 9299 | -3/Research | Reached level 27 9381 | -3/Research | Identified exit to Quarantine 9533 | -3/Research | Entered Quarantine 9534 | -3/Quarantine | Loaded intel: 85 machine locations 9535 | -3/Quarantine | Reached level 28 9714 | -3/Quarantine | Discovered new exit (range 10) 9728 | -3/Quarantine | Entered Research 9729 | -2/Research | Loaded intel: 101 machine locations 9730 | -2/Research | Reached level 29 9740 | -2/Research | Identified exit to Testing 9826 | -2/Research | Core integrity fell below 50% 9846 | -2/Research | Reached level 30 9848 | -2/Research | Fabricated Centrium Greatsword? 9914 | -2/Research | Upgraded with Utility slot (x1) 9922 | -2/Research | Destroyed 7 combat bots 9946 | -2/Research | Discovered new exit (range 11) 9960 | -2/Research | Entered Testing 9961 | -2/Testing | Loaded intel: 74 machine locations 10050 | -2/Testing | Rewired PX-LP833DQGAQ 10111 | -2/Testing | Spotted Fortress 10139 | -2/Testing | Reached level 31 10145 | -2/Testing | Discovered new exit (range 6) 10145 | -2/Testing | Discovered new exit (range 7) 10148 | -2/Testing | Entered Section 7 10149 | -2/Section 7 | Loaded intel: 120 machine locations 10162 | -2/Section 7 | Found Alien Artifact 10162 | -2/Section 7 | Identified Core Reset Matrix 10162 | -2/Section 7 | Used Core Reset Matrix 10166 | -2/Section 7 | Detected hypermatrix surge 10166 | -2/Section 7 | Sensed 21 artifacts in vicinity 10181 | -2/Section 7 | Found Integrated Reactor 10181 | -2/Section 7 | Installed Integrated Reactor, increased core energy generation (+10) 10208 | -2/Section 7 | Spotted S7 Guard 10220 | -2/Section 7 | Destroyed S7 Guard 10240 | -2/Section 7 | Reached level 32 10240 | -2/Section 7 | Scanned by Researcher 10270 | -2/Section 7 | Core integrity fell below 20% 10301 | -2/Section 7 | Found Integrated Thermoelectric Network 10301 | -2/Section 7 | Installed Integrated Thermoelectric Network, gained heat-energy exchange potential 10398 | -2/Section 7 | First assault squad dispatched 10648 | -2/Section 7 | Found Integrated Reactor 10648 | -2/Section 7 | Installed Integrated Reactor, increased core energy generation (+10) 10660 | -2/Section 7 | Discovered new exit (range 13) 10727 | -2/Section 7 | Intercept squad dispatched 10730 | -2/Section 7 | Spotted Tracker 10732 | -2/Section 7 | Spotted Tracker 10738 | -2/Section 7 | Destroyed Tracker 10742 | -2/Section 7 | Spotted Combat Programmer 10743 | -2/Section 7 | Spotted Combat Programmer 10762 | -2/Section 7 | System corruption reached 10% 10765 | -2/Section 7 | Destroyed Combat Programmer 10776 | -2/Section 7 | Destroyed Combat Programmer 10853 | -2/Section 7 | Spotted Alpha 7 10854 | -2/Section 7 | Spotted Alpha 7 10989 | -2/Section 7 | Spotted S7 Guard 10995 | -2/Section 7 | Destroyed by Y-72 Warden with Quantum Rifle Last Messages --------------- Penetrated by Slug. Slug penetrates Wall. Penetrated by Slug. Slug penetrates Wall. Acquired 20 matter. System corrupted: Slammed into wall. Slug penetrates Wall. Zio. Light Carapace destroyed. Slug penetrates Wall. Penetrated by Slug. Slug penetrates H-88 Terminator. Penetrated by Slug. W-44 Eye sends out distress signal. Imp. Datajack destroyed. Penetrated by Slug. W-44 Eye destroyed. P-80 Master resets P-80 Master, system corruption cleaned. System corrupted: Heat flow error (+185). S-43 Plague destroyed. ALERT: Suspicious intruders detected, dispatching Cutter reinforcements to area. Map ----- +----------------------------------------------------+ | | | | | | | | | | | | | | | | | | | | | | | | | | | | | | | ?????????????????????????????????????????????????? | | ?????????????????????????????????????????????????? | | ???????????????????????#######???????????????????? | | ???????????????????????# #???????????????????? | | ???????????????????????? #???!???????????????? | | ???????????H???????????? +???????????????????? | | ???????????????????????? Y #???????????????????? | | ???????????????????????? #???????????????????? | | ????????????????????????# #????????????????????? | | ????????????????????????# #????????????????????? | | ????????????????????????#@ #????????????????????? | | ????????????????????????# #????????????????????? | | ????????????????????????# #????????????????????? | | ????????????????????????# #????????????????????? | | ????????????????????????# #????????????????????? | | ????????????????????????# +????????????????????? | | ????????????????????????# #????????????????????? | | ????????????????????????# #????????????????????? | | ????????????????????????# #????????????????????? | | ????????????????????????# #????????????????????? | | !???????????????????????# +????????????????????? | | ????????????????????????# #????????????????????? | | ????????????????????????# #????????????????????? | | ?????????????????######## #????????????????????? | | ?????????????????#""" # s#????????????????????? | | ?????????????????#"""" " s=+????????????????????? | | ?????????????????#""!" # =%#????????????????????? | | ?????????????????#"""" # %#????????????????????? | | ?????????????????#""" ?# #????????????????????? | | ??????????????????"" ?# ##+#?????????????????? | | ??????????????????" ??# #??????????????#### | | ?????????????????#####??# #??????????????# | | ????????????????????????# #??????????????# | | ????????????????????????##+###/############???# | | ????????????????????????????# # #???# | +----------------------------------------------------+ Best States ------------- Heat Dissipation 31 Energy Generation 67 Energy Capacity 1150 Matter Stores 300 Matter Capacity 300 Sight Range 16 Terrain Scan Density 10 Additional Mass Support 9 Armor Coverage 400 Resistance: KI 20 Resistance: TH 20 Melee Speed Boost 40 Evasion (%) 63 Core Analysis 9 Armor Integrity Analysis 50 Force Boost 20 Offensive Hacking 60 Item Schematics ----------------- Com. Linear Accelerator | -2/Section 7 | Archive Exp. Thermal Defense Suite | -2/Section 7 | Archive Gravity Neutralizer | -2/Section 7 | Archive Exp. Heat Sink | -2/Section 7 | Archive Adv. Myomer Leg | -2/Section 7 | Archive Robot Schematics ------------------ H-88 Terminator | -2/Section 7 | Archive G-73 Enforcer | -2/Section 7 | Archive Fabricated ------------ Greatsword | x2 | -7/Factory Core Analyzer | x2 | -7/Factory Microactuators | x2 | -7/Factory Force Booster | x2 | -5/Factory Graphene Brace | x2 | -4/Factory Centrium Greatsword | x1 | -2/Research Repaired ---------- Force Field | 28% | -5/Factory Alien Tech Used ----------------- Core Reset Matrix Integrated Reactor Integrated Thermoelectric Network Achievements -------------- Reappropriation Challenges ------------ None RPGLIKE | -11 -10 -9 -8 -7 -7 -7 -7 -7 -6 -6 -6 -6 -6 -5 -5 -5 -5 -5 -5 -4 -4 -4 -4 -3 -3 -3 -2 -2 -2 --------- Run | Yrd Mat Mat Mat Fac Low Low Zio Dee Pro Fac Low Low Dat Pro Fac Ext Cet Arc Hub Fac Upp Upp War Pro Res Qua Res Tes Sec Levels Raised 31 | . . 2 2 5 1 1 . 1 2 3 . . 1 1 2 1 . . 1 1 . . . 1 1 1 2 1 1 XP Earned 50527 | 3000 1300 2550 2330 8174 1150 1450 800 1000 3450 3334 459 292 1098 2356 2091 1685 529 307 693 1163 269 384 375 1444 1696 974 2522 1135 2517 XP Spent 43780 | 1000 1400 2000 1050 9000 . 4200 675 650 3100 4875 . . 1750 . 3550 2600 . . . 1500 . 800 . . . . 2900 . 2730 Upgrades 73 | 2 4 5 2 8 . 5 3 2 2 13 . . 2 . 2 1 . . . 1 . 1 . . . . 1 . 19 Propulsion Slot 1 | 1 . . . . . . . . . . . . . . . . . . . . . . . . . . . . . Utility Slot 9 | . . 1 . 3 . 1 . . 1 . . . . . 1 1 . . . . . . . . . . 1 . . Weapon Slot 2 | 1 . . . . . . . . . . . . . . . . . . . . . 1 . . . . . . . Core Integrity 18 | . . . . . . . . . . . . . . . . . . . . . . . . . . . . . 18 Heat Dissipation 1 | . . . . . . . . 1 . . . . . . . . . . . . . . . . . . . . . Energy Generation 4 | . . 1 . . . 3 . . . . . . . . . . . . . . . . . . . . . . . Energy Storage 9 | . . . . . . . 3 . . 6 . . . . . . . . . . . . . . . . . . . Mass Support 3 | . . . . . . 1 . 1 1 . . . . . . . . . . . . . . . . . . . . Inventory Capacity 6 | . . . 1 1 . . . . . . . . 2 . 1 . . . . 1 . . . . . . . . . Melee Accuracy 4 | . 4 . . . . . . . . . . . . . . . . . . . . . . . . . . . . Hack Attack % 8 | . . 3 1 4 . . . . . . . . . . . . . . . . . . . . . . . . . KI Resistance % 4 | . . . . . . . . . . 3 . . . . . . . . . . . . . . . . . . 1 TH Resistance % 4 | . . . . . . . . . . 4 . . . . . . . . . . . . . . . . . . . Protomatter Created 4632 | . 44 125 137 813 . 134 157 256 346 275 . 105 79 115 365 82 40 152 . 47 80 134 . . 94 96 283 72 601 Integrity Restored 11007 | . 66 288 206 1999 135 396 61 1076 997 242 84 29 120 478 645 346 130 55 . 386 160 597 152 75 282 133 564 213 1092 Core 9082 | . 64 288 166 1781 135 337 17 792 830 110 57 21 120 455 448 210 71 36 . 225 130 572 29 75 282 99 432 208 1092 Parts 1925 | . 2 . 40 218 . 59 44 284 167 132 27 8 . 23 197 136 59 19 . 161 30 25 123 . . 34 132 5 . Protomatter Decayed 866 | . 21 14 13 76 . . . 5 10 49 . . . 9 18 37 51 52 138 25 24 29 283 . . . . . 12 Game ------ Seed GuidedChainCleaver Manual? 0 Play Time 02:30:56 Cumulative 259.6 hours Start 2025.06.05 @ 21:28:45 End 2025.06.06 @ 01:03:15 Sessions 3 Manual Loads 0 Difficulty Rogue Special Mode Winter2019/RPGLIKE Game No. 256 Rogue 67 Adventurer 177 Explorer 12 Win Type - Total 65 Types 19/1/16/2/12/0/4/5/0/6 Lore% 54 Gallery% 53 Achievement% 71 Wizard Run 0 Options --------- Layout 0 ASCII 0 Keyboard 0 Movement Numpad Keybinds 0 Fullscreen 2 Font 12/Smallcaps Map View 83x54 Zoom Use 0% Tactical HUD 0 Map Filters NONE Filters NONE Steam 1 RUN: eb953edb-d2b5-485c-85b7-0d36a7d1b9d9